bitfinex/quotes_SOLUSD_20260302
["timestamp","ask_amount","ask_price","bid_price","bid_amount"]
[1772470998345,3.0737847,88.809,88.761,3.1295133]
[1772470998571,3.0737847,88.809,88.771,3.1295133]
[1772470998949,3.0737847,88.807,88.771,3.1295133]
[1772470999263,3.0737847,88.807,88.77,11.26502426]
[1772470999469,3.0737847,88.807,88.762,3.1295133]
[1772470999870,3.0737847,88.807,88.761,39.43173239]
[1772470999871,11.2591058,88.817,88.781,3.1295133]
[1772471000165,39.4068703,88.817,88.781,3.1295133]
[1772471000483,3.0737847,88.809,88.758,3.1295133]
[1772471000654,3.0737847,88.799,88.758,14.39607032]
[1772471000845,3.0737847,88.799,88.759,3.1295133]
[1772471001050,3.0737847,88.799,88.761,3.1295133]
[1772471001249,14.33529959,88.798,88.762,11.26608233]
[1772471001452,3.0737847,88.808,88.77,8.12871206]
[1772471001650,3.0737847,88.808,88.762,11.26608233]
[1772471002050,3.0737847,88.808,88.75,1.12676056]
[1772471002051,3.0737847,88.799,88.752,11.26727358]
[1772471002247,11.26012003,88.809,88.771,3.1295133]
[1772471002449,11.258472,88.822,88.79,11.25822536]
[1772471002656,11.258472,88.822,88.791,3.1295133]
[1772471002848,3.0737847,88.858,88.811,3.1295133]
[1772471003056,3.0737847,88.858,88.821,3.1295133]
[1772471003255,3.0737847,88.879,88.831,3.1295133]
[1772471004067,3.0737847,88.869,88.82,3.1295133]
[1772471004367,3.0737847,88.869,88.821,3.1295133]
[1772471004573,3.0737847,88.869,88.831,3.1295133]
[1772471004957,3.0737847,88.88,88.841,3.1295133]
[1772471005569,11.2512517,88.879,88.842,11.2559375]
[1772471006664,11.25059087,88.885,88.851,3.1295133]
[1772471007768,28.12296838,88.896,88.853,3.1295133]
[1772471008181,3.0737847,88.895,88.853,3.1295133]
[1772471008373,3.0737847,88.889,88.841,3.1295133]
[1772471008880,28.12296838,88.896,88.851,3.1295133]
[1772471009471,11.24884699,88.898,88.861,3.1295133]
[1772471009675,11.24884699,88.898,88.862,11.25340415]
[1772471009880,11.24831832,88.903,88.87,8.12871206]
[1772471010073,11.24831832,88.903,88.871,3.1295133]
[1772471010560,3.0737847,88.913,88.871,3.1295133]
[1772471010561,11.24756682,88.909,88.871,3.1295133]
[1772471011767,3.0737847,88.906,88.871,14.38165249]
[1772471011974,11.24770827,88.907,88.872,3.1295133]
[1772471012289,3.0737847,88.942,88.901,3.1295133]
[1772471012474,8.12871206,88.95,88.901,3.1295133]
[1772471012674,11.24492572,88.929,88.901,3.1295133]
[1772471013082,11.24492572,88.929,88.881,3.1295133]
[1772471013280,11.24428337,88.935,88.901,3.1295133]
[1772471013676,11.24353496,88.94,88.902,11.24834086]
[1772471013984,11.24353496,88.94,88.903,3.1295133]
[1772471014187,44.95772796,88.973,88.902,11.24834086]
[1772471014188,11.34106566,88.96,88.921,3.1295133]
[1772471014568,3.0737847,88.997,88.94,8.12871206]
[1772471014879,3.0737847,88.989,88.941,3.1295133]
[1772471015083,3.0737847,88.989,88.905,3.69383402]
[1772471015084,3.0737847,89.003,88.961,3.1295133]
[1772471015285,3.0737847,88.989,88.941,3.1295133]
[1772471016188,3.0737847,88.987,88.94,8.12871206]
[1772471016373,3.0737847,88.979,88.932,3.1295133]
[1772471017389,3.0737847,88.979,88.94,3.1295133]
[1772471017795,39.33114577,88.988,88.941,3.1295133]
[1772471018084,3.0737847,88.987,88.941,3.1295133]
[1772471018291,3.0737847,88.979,88.935,11.24414806]
[1772471018590,3.0737847,88.949,88.895,3.1295133]
[1772471018771,3.0737847,88.929,88.895,3.1295133]
[1772471020301,11.24505217,88.928,88.895,3.1295133]
[1772471020670,11.24505217,88.928,88.895,14.37869115]
[1772471021976,39.35768261,88.928,88.887,3.1295133]
[1772471022175,3.0737847,88.925,88.879,11.25113145]
[1772471022379,3.0737847,88.919,88.876,14.38114478]
[1772471023272,3.0737847,88.919,88.877,3.1295133]
[1772471023474,3.0737847,88.919,88.871,11.25217724]
[1772471023676,3.0737847,88.909,88.871,11.25217724]
[1772471024086,3.0737847,88.899,88.855,3.1295133]
[1772471024285,3.0737847,88.897,88.855,3.1295133]
[1772471024489,39.37096447,88.898,88.842,3.1295133]
[1772471024490,3.0737847,88.889,88.842,3.1295133]
[1772471025097,3.0737847,88.889,88.851,3.1295133]
[1772471025274,3.0737847,88.889,88.841,39.39622471]
[1772471025478,3.0737847,88.889,88.842,3.1295133]
[1772471026088,8.12871206,88.88,88.842,3.1295133]
[1772471026284,3.0737847,88.877,88.842,3.1295133]
[1772471026579,8.12871206,88.87,88.831,14.38684463]
[1772471026794,3.0737847,88.869,88.831,14.38684463]
[1772471028293,11.25264437,88.868,88.832,3.33556715]
[1772471028497,3.29916512,88.899,88.84,8.12871206]
[1772471028693,56.23284897,88.916,88.832,3.33556715]
[1772471028694,3.29916512,88.879,88.832,3.33556715]
[1772471029083,3.29916512,88.869,88.832,3.33556715]
[1772471029381,3.29916512,88.859,88.812,3.33556715]
[1772471029581,3.29916512,88.849,88.802,3.33556715]
[1772471029786,3.29916512,88.839,88.797,40.54]
[1772471030178,3.29916512,88.839,88.791,3.33556715]
[1772471030395,3.29916512,88.837,88.794,3.33556715]
[1772471031287,3.29916512,88.829,88.783,3.33556715]
[1772471031979,3.29916512,88.837,88.791,3.33556715]
[1772471032402,11.25644431,88.838,88.801,3.33556715]
[1772471032894,11.25584365,88.843,88.801,3.33556715]
[1772471033086,3.29916512,88.842,88.801,3.33556715]
[1772471033597,3.29916512,88.842,88.811,3.33556715]
[1772471033990,3.29916512,88.854,88.811,3.33556715]
[1772471034188,3.29916512,88.854,88.81,8.12871206]
[1772471034189,3.29916512,88.868,88.821,3.33556715]
[1772471034399,56.24760805,88.893,88.793,3.69383402]
[1772471034400,3.29916512,88.859,88.822,11.258472]
[1772471034707,3.29916512,88.859,88.812,3.33556715]
[1772471035585,3.29916512,88.859,88.821,3.33556715]
[1772471036285,11.25277099,88.867,88.821,3.33556715]
[1772471037906,11.25277099,88.867,88.823,3.33556715]
[1772471038219,3.29916512,88.866,88.823,3.33556715]
[1772471039099,3.29916512,88.859,88.815,11.25925942]
[1772471039407,3.29916512,88.859,88.815,14.59482657]
[1772471039702,3.29916512,88.859,88.821,3.33556715]
[1772471039882,11.25391073,88.858,88.821,3.33556715]
[1772471040082,11.25391073,88.858,88.823,3.33556715]
[1772471040502,3.29916512,88.857,88.814,3.33556715]
[1772471040686,11.25391073,88.858,88.79,61.6]
[1772471040687,8.12871206,88.84,88.803,3.33556715]
[1772471040890,8.12871206,88.84,88.79,8.12871206]
[1772471040891,3.29916512,88.857,88.801,3.33556715]
[1772471041101,3.29916512,88.872,88.831,3.33556715]
[1772471041399,44.98516944,88.919,88.802,1.12610076]
[1772471041400,3.29916512,88.898,88.86,8.12871206]
[1772471041583,3.29916512,88.898,88.851,3.33556715]
[1772471041791,3.29916512,88.909,88.87,11.46427921]
[1772471041999,11.24783479,88.906,88.873,3.33556715]
[1772471042206,8.12871206,88.93,88.88,11.46427921]
[1772471042207,14.54573491,88.916,88.88,11.46427921]
[1772471042410,14.54573491,88.916,88.881,3.33556715]
[1772471042612,3.29916512,88.915,88.872,11.2521379]
[1772471044096,3.29916512,88.889,88.84,8.12871206]
[1772471044320,3.29916512,88.879,88.826,3.33556715]
[1772471044811,3.29916512,88.869,88.826,3.33556715]
[1772471045017,3.29916512,88.869,88.82,3.33556715]
[1772471045397,3.29916512,88.869,88.82,8.12871206]
[1772471045616,3.29916512,88.869,88.821,3.33556715]
[1772471046197,3.29916512,88.867,88.823,3.33556715]
[1772471046408,11.25264437,88.868,88.831,3.33556715]
[1772471047004,3.29916512,88.876,88.831,3.33556715]
[1772471047402,14.54915105,88.889,88.851,3.33556715]
[1772471047606,3.29916512,88.888,88.851,3.33556715]
[1772471048125,3.29916512,88.888,88.853,3.33556715]
[1772471048322,11.25023906,88.887,88.853,3.33556715]
[1772471049427,3.29916512,88.896,88.854,11.25441735]
[1772471049806,39.37140735,88.897,88.844,14.59125127]
[1772471049807,3.29916512,88.889,88.844,14.59125127]
[1772471050013,3.29916512,88.889,88.845,3.33556715]
[1772471050417,3.29916512,88.91,88.871,3.33556715]
[1772471050622,3.29916512,88.918,88.881,3.33556715]
[1772471051426,3.29916512,88.918,88.883,3.33556715]
[1772471051627,3.29916512,88.938,88.9,3.33556715]
[1772471051802,3.29916512,88.938,88.891,3.33556715]
[1772471052007,11.24366138,88.939,88.91,8.10537875]
[1772471052209,11.24239732,88.949,88.911,3.33556715]
[1772471052410,11.24187696,88.954,88.911,3.33556715]
[1772471052625,3.29916512,88.972,88.94,8.10537875]
[1772471052832,11.23860686,88.979,88.911,3.33556715]
[1772471052833,3.29916512,88.969,88.911,3.33556715]
[1772471053028,3.29916512,88.969,88.931,3.33556715]
[1772471053215,11.23860686,88.979,88.933,3.33556715]
[1772471053917,3.29916512,88.98,88.941,3.33556715]
[1772471054836,14.53766291,88.98,88.941,3.33556715]
[1772471055034,3.08699625,88.991,88.941,3.33556715]
[1772471055210,3.08699625,89.018,88.971,3.35828871]
[1772471055411,11.23380927,89.017,88.973,3.35828871]
[1772471055619,11.23380927,89.017,88.981,3.35828871]
[1772471055824,3.08699625,89.016,88.972,11.23949107]
[1772471056031,3.08699625,89.016,88.981,3.35828871]
[1772471056331,3.08699625,89.016,88.972,11.23949107]
[1772471056524,3.08699625,89.009,88.956,3.35828871]
[1772471056728,3.08699625,89.009,88.961,3.35828871]
[1772471057333,3.05724647,88.997,88.951,11.24214455]
[1772471057531,3.05724647,88.997,88.952,3.25710266]
[1772471058419,11.23553365,89.004,88.971,3.25710266]
[1772471058618,11.23507139,89.007,88.971,3.25710266]
[1772471058930,11.23380927,89.017,88.971,3.25710266]
[1772471059130,8.20537875,89.02,88.951,39.34750592]
[1772471059131,0.1,89.02,88.981,3.25710266]
[1772471059627,0.1,89.02,88.98,8.10537875]
[1772471059628,0.1,89.02,88.983,3.25710266]
[1772471059838,0.1,89.02,88.991,3.25710266]
[1772471060133,3.15724647,89.02,88.982,11.23822795]
[1772471060435,3.15724647,89.02,88.981,3.25710266]
[1772471060639,0.1,89.02,88.991,3.25710266]
[1772471061535,3.05724647,89.019,88.972,6.95093668]
[1772471061716,3.05724647,89.019,88.973,3.25710266]
[1772471061916,3.05724647,89.019,88.976,3.25710266]
[1772471062123,3.05724647,89.019,88.98,8.10537875]
[1772471062734,3.05724647,89.019,88.98,11.36248141]
[1772471064039,0.1,89.02,88.96,8.10537875]
[1772471064040,3.05724647,89.003,88.96,8.10537875]
[1772471064330,3.05724647,89.003,88.961,3.25710266]
[1772471064535,3.05724647,89.003,88.971,3.25710266]
[1772471065929,11.23570256,89.002,88.971,3.25710266]
[1772471066234,11.23441779,89.013,88.99,8.10537875]
[1772471066540,11.23441779,89.013,88.99,11.36248141]
[1772471066736,11.23441779,89.013,88.981,3.25710266]
[1772471067435,0.1,89.02,88.991,3.25710266]
[1772471068818,3.05724647,89.019,88.973,1.12393647]
[1772471069140,3.05724647,89.019,88.978,3.25710266]
[1772471069336,3.05724647,89.019,88.977,3.69383402]
[1772471069337,3.05724647,89.019,88.98,11.36248141]
[1772471069536,0.1,89.02,89.001,3.25710266]
[1772471069737,0.1,89.02,88.991,3.25710266]
[1772471069946,3.05724647,89.009,88.96,8.10537875]
[1772471070246,3.05724647,89.009,88.96,11.36248141]
[1772471070446,3.05724647,89.009,88.96,3.25710266]
[1772471070940,3.05724647,89.007,88.962,14.49776833]
[1772471072145,3.05724647,88.999,88.952,3.25710266]
[1772471072526,3.05724647,88.999,88.954,11.24175365]
[1772471072926,3.05724647,89.002,88.97,3.25710266]
[1772471073434,11.23490615,89.009,88.98,11.36248141]
[1772471073637,11.23490615,89.009,88.981,3.25710266]
[1772471073842,3.05724647,89.008,88.97,8.10537875]
[1772471074035,3.05724647,89.008,88.969,3.25710266]
[1772471074555,3.05724647,88.999,88.95,8.10537875]
[1772471074843,3.05724647,88.989,88.937,11.24391423]
[1772471075040,3.05724647,88.987,88.937,11.24391423]
[1772471075344,3.05724647,88.987,88.94,8.10537875]
[1772471075545,3.05724647,88.987,88.901,1.12484673]
[1772471075546,3.05724647,88.979,88.933,11.24437807]
[1772471075749,0.28432314,88.978,88.933,11.24437807]
[1772471076052,3.05724647,88.969,88.928,11.2449934]
[1772471076349,3.05724647,88.969,88.925,3.25710266]
[1772471076754,3.05724647,88.969,88.926,11.24530508]
[1772471077129,3.05724647,88.967,88.926,11.24530508]
[1772471077331,3.05724647,88.967,88.918,3.69383402]
[1772471077544,3.05724647,88.967,88.92,8.10537875]
[1772471077741,3.05724647,88.949,88.893,3.25710266]
[1772471077946,3.05724647,88.929,88.884,14.50772144]
[1772471078144,185.45994063,88.968,88.884,14.50772144]
[1772471078145,3.05724647,88.919,88.884,14.50772144]
[1772471078548,3.05724647,88.919,88.884,3.25710266]
[1772471079446,3.05724647,88.917,88.884,3.25710266]
[1772471079955,3.05724647,88.917,88.884,14.50765953]
[1772471081341,11.24656979,88.916,88.884,14.50765953]
[1772471081537,11.24597801,88.921,88.885,3.25710266]
[1772471081745,11.24530409,88.927,88.891,3.25710266]
[1772471082043,3.05724647,88.926,88.891,3.25710266]
[1772471082843,3.05724647,88.926,88.884,11.25055687]
[1772471083256,3.05724647,88.926,88.88,11.36248141]
[1772471083257,3.05724647,88.919,88.88,3.25710266]
[1772471083578,3.05724647,88.917,88.88,3.25710266]
[1772471083939,3.05724647,88.917,88.878,11.25126744]
[1772471084763,3.05724647,88.927,88.891,3.25710266]
[1772471085341,3.05724647,88.938,88.893,3.25710266]
[1772471085650,3.05724647,88.938,88.901,3.25710266]
[1772471086140,8.10537875,88.93,88.892,11.24960626]
[1772471086340,3.05724647,88.929,88.892,11.24960626]
[1772471086753,3.05724647,88.919,88.871,11.25226451]
[1772471086960,3.05724647,88.919,88.872,3.25710266]
[1772471087359,3.05724647,88.919,88.881,3.25710266]
[1772471087865,11.24631683,88.918,88.883,3.06827792]
[1772471088158,3.18924585,88.909,88.87,0.2]
[1772471088361,11.24631683,88.918,88.881,3.06827792]
[1772471088575,11.24579485,88.923,88.891,3.06827792]
[1772471088942,3.18924585,88.922,88.881,3.06827792]
[1772471089444,3.18924585,88.922,88.891,3.06827792]
[1772471089644,28.11123883,88.933,88.901,3.06827792]
[1772471089645,3.18924585,88.933,88.901,3.06827792]
[1772471089849,3.18924585,88.933,88.9,8.10537875]
[1772471089850,3.18924585,88.959,88.922,39.36033826]
[1772471090036,14.42823164,88.976,88.931,3.06827792]
[1772471090241,3.18924585,88.975,88.931,3.06827792]
[1772471090458,39.33645027,88.976,88.9,8.10537875]
[1772471090459,3.18924585,88.949,88.9,8.10537875]
[1772471090664,3.18924585,88.943,88.9,8.10537875]
[1772471090976,3.18924585,88.955,88.911,3.06827792]
[1772471091146,3.18924585,88.955,88.915,3.06827792]
[1772471091346,3.18924585,88.955,88.92,8.10537875]
[1772471091777,3.18924585,88.955,88.92,11.17365667]
[1772471091940,11.2417654,88.954,88.923,3.06827792]
[1772471092146,11.24023899,88.967,88.94,8.10537875]
[1772471092366,11.23923842,88.974,88.95,8.10537875]
[1772471092666,14.42709492,88.985,88.95,11.17365667]
[1772471092864,3.18924585,88.984,88.95,11.17365667]
[1772471093052,11.23720458,88.991,88.951,3.06827792]
[1772471093257,3.18924585,88.99,88.951,3.06827792]
[1772471093451,3.18924585,88.99,88.96,8.10537875]
[1772471093651,3.18924585,88.99,88.951,3.06827792]
[1772471093852,3.18924585,89.0,88.971,11.2396174]
[1772471094052,11.2360813,88.999,88.971,11.2396174]
[1772471094360,3.18924585,88.998,88.96,11.17365667]
[1772471094761,3.18924585,88.998,88.961,11.24088083]
[1772471096271,3.18924585,88.996,88.96,8.10537875]
[1772471096478,3.18924585,88.992,88.95,11.17365667]
[1772471096771,3.47356899,88.979,88.929,3.06827792]
[1772471097075,3.47356899,88.979,88.929,14.31314835]
[1772471097254,3.18924585,88.979,88.931,3.06827792]
[1772471097569,3.18924585,88.989,88.951,3.06827792]
[1772471098452,11.23747022,88.988,88.953,3.06827792]
[1772471098661,11.23747022,88.988,88.961,3.06827792]
[1772471098856,11.2366943,88.995,88.961,3.06827792]
[1772471099169,0.1,89.02,88.981,3.06827792]
[1772471099170,3.18924585,89.018,88.981,3.06827792]
[1772471099360,3.18924585,89.018,88.99,8.10537875]
[1772471099750,3.18924585,89.018,88.98,8.10537875]
[1772471099951,3.18924585,89.012,88.96,8.10537875]
[1772471100154,3.47356899,89.009,88.96,8.10537875]
[1772471100356,3.47356899,88.989,88.94,8.10537875]
[1772471100572,3.47356899,88.987,88.931,11.24467283]
[1772471100860,3.47356899,88.979,88.931,11.24467283]
[1772471101156,3.47356899,88.979,88.926,11.24518919]
[1772471101883,3.47356899,88.969,88.92,11.24595103]
[1772471102098,3.47356899,88.969,88.913,3.06827792]
[1772471102968,3.18924585,88.966,88.913,14.31521341]
[1772471103276,39.3399874,88.968,88.914,3.06827792]
[1772471103469,3.18924585,88.962,88.921,3.06827792]
[1772471104289,3.18924585,88.962,88.92,8.10537875]
[1772471104491,3.18924585,88.962,88.921,3.06827792]
[1772471104667,11.23937376,88.973,88.94,11.17365667]
[1772471104990,11.2396174,88.971,88.941,11.24340855]
[1772471105485,3.18924585,88.972,88.941,11.24340855]
[1772471105674,3.18924585,88.972,88.941,14.31168647]
[1772471105869,3.18924585,88.995,88.96,8.10537875]
[1772471106074,3.18924585,89.006,88.97,8.10537875]
[1772471106483,3.18924585,89.006,88.969,3.06827792]
[1772471106891,3.18924585,89.018,88.98,8.10537875]
[1772471107092,3.18924585,89.016,88.98,8.10537875]
[1772471107393,3.18924585,89.016,88.982,3.06827792]
[1772471107582,0.1,89.02,88.99,8.10537875]
[1772471107770,11.23355688,89.019,88.99,11.17365667]
[1772471108176,3.18924585,89.018,88.971,11.2396174]
[1772471108376,3.18924585,89.018,88.981,3.06827792]
[1772471109092,0.1,89.02,88.992,11.23696512]
[1772471110172,0.1,89.02,89.001,3.06827792]
[1772471111285,0.1,89.02,89.002,11.23570256]
[1772471111488,0.1,89.02,88.992,3.06827792]
[1772471111677,3.28924585,89.02,88.983,11.23803143]
[1772471111875,3.28924585,89.02,88.99,8.07934045]
[1772471112389,0.1,89.02,88.991,3.06827792]
[1772471112890,0.1,89.03,89.011,3.06827792]
[1772471113123,0.1,89.04,89.012,3.06827792]
[1772471113295,3.18924585,89.035,88.991,3.06827792]
[1772471113480,3.18924585,89.033,89.0,8.07934045]
[1772471113680,3.18924585,89.033,88.992,3.06827792]
[1772471113880,11.23115972,89.038,89.001,3.06827792]
[1772471114088,0.1,89.04,89.011,3.06827792]
[1772471114297,11.23103359,89.039,89.011,3.06827792]
[1772471115291,3.11134136,89.038,88.991,11.23697543]
[1772471115495,3.11134136,89.036,88.991,11.23697543]
[1772471115699,3.11134136,89.036,88.992,3.20994117]
[1772471116707,11.23128586,89.037,89.001,3.20994117]
[1772471118005,11.23128586,89.037,89.0,8.07934045]
[1772471118006,11.23128586,89.037,89.002,11.23570256]
[1772471118207,11.23115972,89.038,89.003,3.16344926]
[1772471118613,3.11134136,89.039,89.011,3.16344926]
[1772471118614,11.23103359,89.039,89.011,3.16344926]
[1772471119112,3.09900396,89.038,88.991,3.16344926]
[1772471119692,3.09900396,89.038,88.984,3.69383402]
[1772471119693,3.09900396,89.019,88.984,3.69383402]
[1772471119894,3.09900396,89.019,88.981,3.16344926]
[1772471120310,8.07934045,89.03,88.97,11.24278971]
[1772471120311,3.09900396,89.017,88.97,11.24278971]
[1772471120717,3.09900396,89.017,88.971,3.16344926]
[1772471121097,3.09900396,89.017,88.941,1.12434085]
[1772471121098,3.09900396,88.999,88.95,11.24278971]
[1772471121312,3.09900396,88.981,88.93,8.07934045]
[1772471121508,3.09900396,88.971,88.916,14.41001905]
[1772471121716,230.29050302,89.018,88.916,11.24656979]
[1772471121717,3.09900396,88.959,88.916,11.24656979]
[1772471121897,3.3833271,88.959,88.905,3.16344926]
[1772471122096,3.09900396,88.967,88.906,11.24783479]
[1772471122411,3.09900396,88.957,88.911,3.16344926]
[1772471122718,3.09900396,88.957,88.921,3.16344926]
[1772471123314,3.09900396,88.957,88.93,8.07934045]
[1772471123503,3.09900396,88.957,88.921,3.16344926]
[1772471125613,11.2407324,88.963,88.931,3.16344926]
[1772471125811,3.09900396,88.975,88.94,8.07934045]
[1772471125812,11.23923842,88.974,88.94,8.07934045]
[1772471125999,11.23923842,88.974,88.941,3.16344926]
[1772471126194,3.09900396,89.028,88.951,3.16344926]
[1772471126425,3.09900396,89.019,88.97,8.07934045]
[1772471126716,3.09900396,89.019,88.922,185.55588041]
[1772471126717,3.09900396,88.997,88.94,8.07934045]
[1772471126901,0.28432314,88.984,88.94,8.07934045]
[1772471127098,3.09900396,88.981,88.941,3.16344926]
[1772471127702,3.09900396,88.979,88.95,8.07934045]
[1772471128212,3.09900396,88.979,88.93,8.07934045]
[1772471128410,3.09900396,88.969,88.925,11.24540922]
[1772471128714,14.33748451,88.98,88.941,3.16344926]
[1772471128917,14.33748451,88.98,88.95,8.07934045]
[1772471129118,11.23848055,88.98,88.941,3.16344926]
[1772471129328,11.23848055,88.98,88.94,8.07934045]
[1772471129329,3.09900396,88.979,88.94,8.07934045]
[1772471129502,3.09900396,88.979,88.931,3.16344926]
[1772471129827,3.09900396,88.977,88.933,3.16344926]
[1772471130017,3.3833271,88.969,88.92,3.16344926]
[1772471130324,3.09900396,88.959,88.911,11.24720225]
[1772471131225,3.09900396,88.959,88.912,3.16344926]
[1772471132108,3.09900396,88.957,88.92,8.07934045]
[1772471132310,3.09900396,88.957,88.914,3.16344926]
[1772471132609,3.09900396,88.957,88.92,8.07934045]
[1772471133316,3.09900396,88.957,88.914,3.16344926]
[1772471133520,0.28432314,88.954,88.911,11.24708227]
[1772471133721,3.09900396,88.951,88.911,11.24708227]
[1772471134627,3.09900396,88.949,88.909,3.16344926]
[1772471134819,3.09900396,88.949,88.91,8.07934045]
[1772471135004,3.09900396,88.949,88.91,11.24278971]
[1772471135209,3.09900396,88.949,88.911,3.16344926]
[1772471135408,3.09900396,88.949,88.91,8.07934045]
[1772471135409,11.2415831,88.956,88.921,3.16344926]
[1772471135711,3.09900396,88.955,88.921,3.16344926]
[1772471136912,11.2417654,88.954,88.923,3.16344926]
[1772471137424,14.34076936,88.954,88.923,3.16344926]
[1772471137725,3.09900396,88.978,88.941,3.16344926]
[1772471137907,3.09900396,88.976,88.941,3.16344926]
[1772471138110,11.23829423,88.982,88.951,3.16344926]
[1772471138323,11.23829423,88.982,88.933,3.16344926]
[1772471138324,3.09900396,88.981,88.933,3.16344926]
[1772471138514,3.3833271,88.979,88.93,8.07934045]
[1772471138916,3.3833271,88.979,88.922,42.52378752]
[1772471138917,3.3833271,88.977,88.922,3.16344926]
[1772471139116,3.3833271,88.969,88.913,3.69383402]
[1772471139333,3.09900396,88.959,88.912,14.41052118]
[1772471140526,3.09900396,88.951,88.902,3.16344926]
[1772471140729,3.09900396,88.945,88.892,3.16344926]
[1772471140913,3.09900396,88.939,88.893,11.24947971]
[1772471141733,3.09900396,88.937,88.892,3.16344926]
[1772471141917,3.09900396,88.929,88.882,3.16344926]
[1772471142533,3.09900396,88.907,88.85,8.07934045]
[1772471142831,3.09900396,88.897,88.85,8.07934045]
[1772471143034,185.54753389,88.926,88.84,19.33551197]
[1772471143035,3.09900396,88.891,88.84,19.33551197]
[1772471143636,3.09900396,88.891,88.841,3.16344926]
[1772471143831,3.09900396,88.891,88.85,8.07934045]
[1772471144229,3.09900396,88.891,88.84,19.33551197]
[1772471144434,3.09900396,88.881,88.831,11.25733133]
[1772471145728,3.09900396,88.881,88.84,8.07934045]
[1772471145917,3.09900396,88.881,88.841,3.16344926]
[1772471146111,3.09900396,88.881,88.84,8.07934045]
[1772471146537,39.37893789,88.88,88.84,8.07934045]
[1772471146725,3.09900396,88.879,88.832,11.25720461]
[1772471146919,3.09900396,88.859,88.795,3.16344926]
[1772471147126,3.09900396,88.859,88.81,8.07934045]
[1772471147326,3.09900396,88.859,88.82,8.27934045]
[1772471147831,3.09900396,88.859,88.83,11.15888813]
[1772471148036,3.1036243,88.879,88.831,3.07954768]
[1772471148531,3.1036243,88.877,88.84,8.07934045]
[1772471148739,3.1036243,88.875,88.824,3.69383402]
[1772471148921,3.1036243,88.869,88.82,8.27934045]
[1772471149419,3.1036243,88.869,88.82,0.2]
[1772471149622,3.1036243,88.869,88.82,19.53801669]
[1772471150256,3.1036243,88.867,88.82,0.2]
[1772471150540,3.1036243,88.859,88.82,0.2]
[1772471150840,3.1036243,88.859,88.765,45.06231035]
[1772471150841,8.07934045,88.85,88.791,3.12112991]
[1772471151325,0.5169635,88.842,88.801,3.12112991]
[1772471151646,0.5169635,88.849,88.801,3.12112991]
[1772471152018,11.25391073,88.858,88.821,3.12112991]
[1772471152344,11.25391073,88.858,88.831,3.12112991]
[1772471153249,28.64819089,88.87,88.831,3.12112991]
[1772471153624,28.64819089,88.87,88.798,3.12112991]
[1772471153625,0.51694711,88.849,88.798,3.12112991]
[1772471153839,0.51694711,88.849,88.801,3.12112991]
[1772471154938,39.91005988,88.848,88.803,3.12112991]
[1772471155126,11.25517738,88.848,88.803,3.12112991]
[1772471155329,44.99305635,88.903,88.831,3.12112991]
[1772471155330,0.51693109,88.894,88.831,3.12112991]
[1772471155650,0.51693109,88.869,88.82,3.12112991]
[1772471155829,0.51693109,88.861,88.82,3.12112991]
[1772471156036,8.07934045,88.87,88.821,3.12112991]
[1772471156228,0.51502293,88.871,88.831,3.12112991]
[1772471157145,0.51502293,88.867,88.831,3.12112991]
[1772471157328,0.51502293,88.867,88.821,3.12112991]
[1772471158341,39.38514167,88.866,88.821,3.12112991]
[1772471158555,0.5112721,88.865,88.811,3.12112991]
[1772471159146,0.5112721,88.865,88.821,3.12112991]
[1772471160052,0.50760694,88.859,88.81,8.07934045]
[1772471160226,11.25289762,88.866,88.821,3.12112991]
[1772471160428,0.28432314,88.875,88.832,3.12112991]
[1772471160624,0.50760694,88.869,88.832,3.12112991]
[1772471161437,28.12869529,88.878,88.832,3.12112991]
[1772471161849,0.50580587,88.877,88.832,3.12112991]
[1772471162048,8.07934045,88.87,88.832,3.12112991]
[1772471162245,0.50402549,88.859,88.811,3.12112991]
[1772471162561,157.51220719,88.882,88.791,3.12112991]
[1772471162562,8.07934045,88.84,88.791,3.12112991]
[1772471162851,0.50402549,88.85,88.811,3.12112991]
[1772471164552,0.28432314,88.852,88.811,3.12112991]
[1772471164747,39.39090407,88.853,88.812,3.12112991]
[1772471166550,0.49710613,88.847,88.812,3.12112991]
[1772471166754,3.1036243,88.839,88.79,8.07934045]
[1772471166939,39.39312083,88.848,88.79,8.07934045]
[1772471167145,0.28432314,88.842,88.8,8.07934045]
[1772471167541,0.28432314,88.842,88.79,8.07934045]
[1772471167746,39.39312083,88.848,88.787,3.69383402]
[1772471167955,102.7,88.899,88.787,3.69383402]
[1772471167956,11.25188469,88.874,88.83,8.07934045]
[1772471168338,11.25188469,88.874,88.809,3.69383402]
[1772471168339,28.13150943,88.869,88.82,8.07934045]
[1772471168657,42.48832277,88.867,88.822,3.07954768]
[1772471168855,3.1036243,88.866,88.822,3.07954768]
[1772471169060,39.38469847,88.867,88.822,3.07954768]
[1772471169061,3.1036243,88.859,88.822,3.07954768]
[1772471169754,39.38469847,88.867,88.822,3.07954768]
[1772471170464,39.38469847,88.867,88.831,3.07954768]
[1772471170465,11.25277099,88.867,88.831,3.07954768]
[1772471170641,3.1036243,88.869,88.831,3.07954768]
[1772471172547,39.38425529,88.868,88.833,3.07954768]
[1772471172961,11.25264437,88.868,88.835,3.07954768]
[1772471173564,11.25264437,88.868,88.8,1.12612612]